[Event "GrandPrix_29.05"]
[Site "Chess.com"]
[Date "2020.05.29"]
[Round "4"]
[White "AmilAbbasov"]
[Black "Velis23"]
[Result "1-0"]
[WhiteElo "2269"]
[BlackElo "2271"]
[TimeControl "600+2"]
[EndTime "11:02:26 PDT"]
[Termination "AmilAbbasov won on time"]

1. e4 {[%clk 0:10:01.9]} 1... c6 {[%clk 0:09:53.8]} 2. Nf3 {[%clk 0:10:01.6]}
2... d5 {[%clk 0:09:52.1]} 3. Nc3 {[%clk 0:10:01.7]} 3... dxe4 {[%clk
0:09:43.1]} 4. Nxe4 {[%clk 0:10:03.6]} 4... Nf6 {[%clk 0:09:44]} 5. Nxf6+ {[%clk
0:10:03.5]} 5... exf6 {[%clk 0:09:44.3]} 6. d4 {[%clk 0:09:57.5]} 6... Bd6
{[%clk 0:09:42.5]} 7. Bd3 {[%clk 0:09:55.9]} 7... O-O {[%clk 0:09:41.8]} 8. O-O
{[%clk 0:09:56.4]} 8... Bg4 {[%clk 0:09:25.3]} 9. h3 {[%clk 0:09:49.3]} 9... Bh5
{[%clk 0:09:25.3]} 10. c3 {[%clk 0:09:44.1]} 10... Bc7 {[%clk 0:09:18.7]} 11.
Be2 {[%clk 0:09:04.3]} 11... Re8 {[%clk 0:09:09.8]} 12. Re1 {[%clk 0:08:57.3]}
12... Qd6 {[%clk 0:09:02.2]} 13. g3 {[%clk 0:08:47]} 13... Qe6 {[%clk
0:08:54.3]} 14. Bf1 {[%clk 0:08:02.1]} 14... Qxe1 {[%clk 0:08:13.1]} 15. Qxe1
{[%clk 0:08:04]} 15... Rxe1 {[%clk 0:08:12.6]} 16. Nxe1 {[%clk 0:08:03.2]} 16...
Nd7 {[%clk 0:08:13.4]} 17. g4 {[%clk 0:07:34.8]} 17... Bg6 {[%clk 0:08:11.9]}
18. Bd3 {[%clk 0:07:35.5]} 18... Re8 {[%clk 0:08:07.2]} 19. Be3 {[%clk
0:07:33.9]} 19... Nb6 {[%clk 0:08:01.7]} 20. Bxg6 {[%clk 0:07:26.5]} 20... hxg6
{[%clk 0:08:01.4]} 21. b3 {[%clk 0:07:23.7]} 21... Nd5 {[%clk 0:07:56.5]} 22.
Bd2 {[%clk 0:07:17.7]} 22... Re2 {[%clk 0:07:40.2]} 23. Nf3 {[%clk 0:07:10.2]}
23... Bf4 {[%clk 0:07:33]} 24. c4 {[%clk 0:07:07.1]} 24... Bxd2 {[%clk
0:06:47.8]} 25. cxd5 {[%clk 0:07:00.3]} 25... Bf4 {[%clk 0:06:43.5]} 26. dxc6
{[%clk 0:06:51.2]} 26... bxc6 {[%clk 0:06:43.5]} 27. Kf1 {[%clk 0:06:44.5]}
27... Rc2 {[%clk 0:06:39.3]} 28. Ne1 {[%clk 0:06:44.4]} 28... Rd2 {[%clk
0:06:26.4]} 29. Nf3 {[%clk 0:06:42.9]} 29... Rc2 {[%clk 0:06:00]} 30. Ne1 {[%clk
0:06:42.1]} 30... Rc3 {[%clk 0:05:59.2]} 31. Ke2 {[%clk 0:06:29.3]} 31... Kf8
{[%clk 0:05:17.5]} 32. Nd3 {[%clk 0:04:58]} 32... Rc2+ {[%clk 0:05:16.9]} 33.
Kf3 {[%clk 0:04:56.3]} 33... Bd6 {[%clk 0:05:13.7]} 34. Rc1 {[%clk 0:04:50.9]}
34... Rxa2 {[%clk 0:04:28.7]} 35. Rxc6 {[%clk 0:04:48.7]} 35... Ke7 {[%clk
0:04:29.8]} 36. Ke3 {[%clk 0:04:39.4]} 36... Ra3 {[%clk 0:04:18.5]} 37. Nc1
{[%clk 0:04:24.4]} 37... g5 {[%clk 0:04:09.1]} 38. Ke4 {[%clk 0:04:06.1]} 38...
Kd7 {[%clk 0:03:15.3]} 39. Rc4 {[%clk 0:04:05.9]} 39... Bf4 {[%clk 0:03:02.9]}
40. Nd3 {[%clk 0:03:55.4]} 40... Bd6 {[%clk 0:02:55.7]} 41. Ra4 {[%clk
0:03:46.4]} 41... Rxa4 {[%clk 0:02:03.9]} 42. bxa4 {[%clk 0:03:48.3]} 42... Kc6
{[%clk 0:02:01.3]} 43. Nc1 {[%clk 0:03:41.6]} 43... g6 {[%clk 0:01:45.8]} 44.
Nb3 {[%clk 0:03:38.4]} 44... Bb4 {[%clk 0:01:46.5]} 45. f3 {[%clk 0:03:31.7]}
45... Kd6 {[%clk 0:01:45.4]} 46. Nc1 {[%clk 0:03:05.8]} 46... Ba3 {[%clk
0:01:35.3]} 47. Ne2 {[%clk 0:02:49.2]} 47... Bb2 {[%clk 0:01:24.7]} 48. Kd3
{[%clk 0:02:45.6]} 48... Kd5 {[%clk 0:01:20.4]} 49. Nc3+ {[%clk 0:02:42.1]}
49... Kc6 {[%clk 0:00:19.3]} 50. Kc4 {[%clk 0:02:40.5]} 50... a6 {[%clk
0:00:15.2]} 51. Ne4 {[%clk 0:02:37.7]} 51... f5 {[%clk 0:00:13.7]} 52. Nxg5
{[%clk 0:02:35.8]} 52... fxg4 {[%clk 0:00:15]} 53. fxg4 {[%clk 0:01:55.6]} 53...
f5 {[%clk 0:00:15.6]} 54. gxf5 {[%clk 0:01:54.9]} 54... gxf5 {[%clk 0:00:16.7]}
55. h4 {[%clk 0:01:56.2]} 55... Bc1 {[%clk 0:00:15.1]} 56. Nf3 {[%clk
0:01:56.8]} 56... Bh6 {[%clk 0:00:09.8]} 57. h5 {[%clk 0:01:52.9]} 57... f4
{[%clk 0:00:10.5]} 58. Nh4 {[%clk 0:01:52.6]} 58... Bg5 {[%clk 0:00:06.1]} 59.
Nf3 {[%clk 0:01:43.5]} 59... Bh6 {[%clk 0:00:07]} 60. Ne5+ {[%clk 0:01:42.3]}
60... Kc7 {[%clk 0:00:07]} 61. Kd5 {[%clk 0:00:41]} 61... Kb6 {[%clk 0:00:07.6]}
62. Ke4 {[%clk 0:00:28.6]} 62... Ka5 {[%clk 0:00:08.5]} 63. d5 {[%clk
0:00:27.4]} 63... Kb6 {[%clk 0:00:03.5]} 64. Nf7 {[%clk 0:00:23.2]} 64... Bg7
{[%clk 0:00:03.6]} 65. Kxf4 {[%clk 0:00:15.4]} 65... Kc5 {[%clk 0:00:02.6]} 66.
Ke4 {[%clk 0:00:16.1]} 66... a5 {[%clk 0:00:03.4]} 67. h6 {[%clk 0:00:16.4]}
67... Bf6 {[%clk 0:00:03]} 68. h7 {[%clk 0:00:17.6]} 68... Kb4 {[%clk
0:00:03.2]} 69. d6 {[%clk 0:00:17.6]} 69... Kc5 {[%clk 0:00:03.9]} 70. d7 {[%clk
0:00:18.6]} 70... Kc6 {[%clk 0:00:05.4]} 71. d8=Q {[%clk 0:00:19.7]} 71... Bxd8
{[%clk 0:00:06.3]} 72. Nxd8+ {[%clk 0:00:21]} 72... Kc5 {[%clk 0:00:07.7]} 73.
h8=Q {[%clk 0:00:22]} 1-0

[Event "GrandPrix_29.05"]
[Site "Chess.com"]
[Date "2020.05.29"]
[Round "4"]
[White "Misi_95"]
[Black "BakaPG"]
[Result "0-1"]
[WhiteElo "2132"]
[BlackElo "2194"]
[TimeControl "600+2"]
[EndTime "11:02:34 PDT"]
[Termination "BakaPG won by resignation"]

1. e4 {[%clk 0:10:01.9]} 1... e6 {[%clk 0:09:52.5]} 2. d4 {[%clk 0:09:41.9]}
2... d5 {[%clk 0:09:49.7]} 3. Nc3 {[%clk 0:09:42.2]} 3... Nf6 {[%clk 0:09:48]}
4. Bg5 {[%clk 0:09:24.5]} 4... Be7 {[%clk 0:09:46.8]} 5. e5 {[%clk 0:09:25.3]}
5... Nfd7 {[%clk 0:09:46.3]} 6. Bxe7 {[%clk 0:09:27.2]} 6... Qxe7 {[%clk
0:09:45.9]} 7. f4 {[%clk 0:09:29.1]} 7... a6 {[%clk 0:09:46.8]} 8. Nf3 {[%clk
0:09:29.9]} 8... c5 {[%clk 0:09:47.4]} 9. dxc5 {[%clk 0:09:30.8]} 9... Nc6
{[%clk 0:09:47.9]} 10. Bd3 {[%clk 0:09:31.8]} 10... Qxc5 {[%clk 0:09:48.2]} 11.
Qd2 {[%clk 0:09:32.4]} 11... b5 {[%clk 0:09:48.9]} 12. Ne2 {[%clk 0:09:32.8]}
12... Nb6 {[%clk 0:09:43]} 13. Ned4 {[%clk 0:08:20.7]} 13... Nxd4 {[%clk
0:09:24.4]} 14. Nxd4 {[%clk 0:08:19.5]} 14... Nc4 {[%clk 0:09:22.9]} 15. Bxc4
{[%clk 0:08:12.8]} 15... dxc4 {[%clk 0:09:23.6]} 16. O-O-O {[%clk 0:08:12]}
16... O-O {[%clk 0:09:21.9]} 17. Qe3 {[%clk 0:07:55.6]} 17... b4 {[%clk
0:09:16.6]} 18. Rhe1 {[%clk 0:07:24.4]} 18... c3 {[%clk 0:09:02.6]} 19. Nb3
{[%clk 0:07:10.3]} 19... cxb2+ {[%clk 0:08:43.4]} 20. Kxb2 {[%clk 0:07:09.4]}
20... Qc6 {[%clk 0:08:37.5]} 21. Qc5 {[%clk 0:07:06]} 21... Qa4 {[%clk
0:08:14.6]} 22. Qa5 {[%clk 0:06:45.2]} 22... Bd7 {[%clk 0:07:44.6]} 23. Rd6
{[%clk 0:06:28.3]} 23... Rfc8 {[%clk 0:07:14.2]} 24. Red1 {[%clk 0:06:05.5]}
24... Qxa5 {[%clk 0:07:12.9]} 25. Nxa5 {[%clk 0:06:04.6]} 25... Ba4 {[%clk
0:07:14.3]} 26. Nc4 {[%clk 0:05:38.6]} 26... Bxc2 {[%clk 0:06:59.3]} 27. R1d2
{[%clk 0:05:34.2]} 27... Be4 {[%clk 0:06:12.7]} 28. Nb6 {[%clk 0:05:32.7]} 28...
Bd5 {[%clk 0:06:06.1]} 29. Nxc8 {[%clk 0:05:11.5]} 29... Rxc8 {[%clk 0:06:04.8]}
30. Rxa6 {[%clk 0:05:12.4]} 30... h5 {[%clk 0:05:53.4]} 31. Rc2 {[%clk
0:05:06.2]} 31... Rb8 {[%clk 0:05:49.5]} 32. Rc7 {[%clk 0:05:02.4]} 32... b3
{[%clk 0:05:39.4]} 33. a4 {[%clk 0:04:59.6]} 33... Rb4 {[%clk 0:05:34.6]} 34. g3
{[%clk 0:04:14.5]} 34... Re4 {[%clk 0:05:29.3]} 35. Rb6 {[%clk 0:04:10.8]} 35...
Re2+ {[%clk 0:05:28.1]} 36. Kc1 {[%clk 0:04:08.8]} 36... Ra2 {[%clk 0:04:16.9]}
37. a5 {[%clk 0:02:04.6]} 37... Rxa5 {[%clk 0:04:13.7]} 38. Rb8+ {[%clk
0:02:04]} 38... Kh7 {[%clk 0:04:13.5]} 39. Rxf7 {[%clk 0:02:05]} 39... Ra1+
{[%clk 0:04:08.9]} 40. Kb2 {[%clk 0:01:58.9]} 40... Ra2+ {[%clk 0:04:10.8]} 41.
Kc3 {[%clk 0:01:54.8]} 41... Rxh2 {[%clk 0:03:35.8]} 42. Rff8 {[%clk 0:01:28.7]}
42... Rg2 {[%clk 0:03:28.2]} 43. f5 {[%clk 0:01:21.7]} 43... exf5 {[%clk
0:02:23.7]} 44. Kd4 {[%clk 0:01:12.6]} 44... Rd2+ {[%clk 0:02:00.1]} 45. Ke3
{[%clk 0:01:12.1]} 45... Rg2 {[%clk 0:01:49.6]} 46. Kf4 {[%clk 0:01:11]} 46...
b2 {[%clk 0:01:28.5]} 47. Rh8+ {[%clk 0:01:05]} 47... Kg6 {[%clk 0:01:27.4]} 48.
Rb6+ {[%clk 0:01:06.9]} 48... Kf7 {[%clk 0:01:25.5]} 49. Rhb8 {[%clk 0:01:08.1]}
49... h4 {[%clk 0:01:02.4]} 50. gxh4 {[%clk 0:00:59.3]} 50... g6 {[%clk
0:00:31.2]} 51. Rxb2 {[%clk 0:00:22.4]} 51... Rg4+ {[%clk 0:00:30.8]} 52. Ke3
{[%clk 0:00:23.7]} 52... Rxh4 {[%clk 0:00:29.4]} 53. Rd8 {[%clk 0:00:16.4]}
53... Re4+ {[%clk 0:00:24.8]} 54. Kd3 {[%clk 0:00:16.4]} 54... Ke6 {[%clk
0:00:17]} 55. Re8+ {[%clk 0:00:11.2]} 55... Kd7 {[%clk 0:00:15.5]} 56. Rbb8
{[%clk 0:00:12.3]} 56... Bc6 {[%clk 0:00:10.5]} 57. e6+ {[%clk 0:00:07.9]} 57...
Kd6 {[%clk 0:00:08.4]} 58. Rbd8+ {[%clk 0:00:08]} 58... Kc7 {[%clk 0:00:08.1]}
59. Rc8+ {[%clk 0:00:06.7]} 59... Kd6 {[%clk 0:00:09]} 60. Red8+ {[%clk
0:00:07.8]} 60... Kc5 {[%clk 0:00:08.7]} 61. Re8 {[%clk 0:00:04.2]} 61... Kd6
{[%clk 0:00:09.6]} 62. e7 {[%clk 0:00:02.8]} 62... Bxe8 {[%clk 0:00:07.8]} 63.
Rxe8 {[%clk 0:00:04.7]} 63... Rxe7 {[%clk 0:00:08.6]} 64. Ra8 {[%clk 0:00:05.2]}
64... Ke5 {[%clk 0:00:08.7]} 65. Ke3 {[%clk 0:00:06.3]} 65... Kf6+ {[%clk
0:00:09.6]} 66. Kf3 {[%clk 0:00:07.7]} 66... g5 {[%clk 0:00:10.6]} 67. Ra6+
{[%clk 0:00:08.2]} 67... Re6 {[%clk 0:00:11.3]} 68. Ra8 {[%clk 0:00:10.1]} 68...
g4+ {[%clk 0:00:12.4]} 69. Kf4 {[%clk 0:00:11.4]} 69... Re4+ {[%clk 0:00:13.2]}
70. Kg3 {[%clk 0:00:13]} 70... Re3+ {[%clk 0:00:14.6]} 71. Kf2 {[%clk
0:00:14.1]} 71... Rb3 {[%clk 0:00:14.8]} 72. Rg8 {[%clk 0:00:14.1]} 72... Ke5
{[%clk 0:00:15.1]} 73. Ra8 {[%clk 0:00:15.6]} 73... Kf4 {[%clk 0:00:14]} 74.
Ra4+ {[%clk 0:00:16.9]} 74... Kg5 {[%clk 0:00:14.6]} 75. Ra8 {[%clk 0:00:18.8]}
75... Rb2+ {[%clk 0:00:15.5]} 76. Ke3 {[%clk 0:00:19]} 76... f4+ {[%clk
0:00:16.1]} 77. Ke4 {[%clk 0:00:20.3]} 77... Re2+ {[%clk 0:00:15.4]} 78. Kd3
{[%clk 0:00:21.5]} 78... Re7 {[%clk 0:00:15.8]} 79. Rg8+ {[%clk 0:00:21.3]}
79... Kh4 {[%clk 0:00:14.2]} 0-1

[Event "GrandPrix_29.05"]
[Site "Chess.com"]
[Date "2020.05.29"]
[Round "4"]
[White "Hero_in_my_life"]
[Black "imdvb6307"]
[Result "1/2-1/2"]
[WhiteElo "2159"]
[BlackElo "2080"]
[TimeControl "600+2"]
[EndTime "11:02:34 PDT"]
[Termination "Game drawn by stalemate"]

1. e4 {[%clk 0:10:01.9]} 1... Nc6 {[%clk 0:09:59]} 2. Nc3 {[%clk 0:09:59.9]}
2... e5 {[%clk 0:09:58.4]} 3. Nf3 {[%clk 0:09:59.8]} 3... Nf6 {[%clk 0:09:57.5]}
4. a3 {[%clk 0:10:00]} 4... d6 {[%clk 0:09:31.4]} 5. d4 {[%clk 0:09:56.4]} 5...
Be7 {[%clk 0:09:25.4]} 6. Be2 {[%clk 0:09:41.2]} 6... O-O {[%clk 0:09:22.8]} 7.
O-O {[%clk 0:09:41.6]} 7... Bg4 {[%clk 0:09:10.5]} 8. Be3 {[%clk 0:09:24.2]}
8... Bxf3 {[%clk 0:09:08.8]} 9. Bxf3 {[%clk 0:09:23.4]} 9... exd4 {[%clk
0:09:09.7]} 10. Bxd4 {[%clk 0:09:22.9]} 10... Nxd4 {[%clk 0:09:10.7]} 11. Qxd4
{[%clk 0:09:23.1]} 11... c6 {[%clk 0:09:11.6]} 12. Rfe1 {[%clk 0:08:51.6]} 12...
Qb6 {[%clk 0:08:55]} 13. Qxb6 {[%clk 0:08:18]} 13... axb6 {[%clk 0:08:54.3]} 14.
e5 {[%clk 0:08:17]} 14... dxe5 {[%clk 0:08:55.1]} 15. Rxe5 {[%clk 0:08:17.7]}
15... Bd6 {[%clk 0:08:33.1]} 16. Re2 {[%clk 0:08:15.3]} 16... Rfe8 {[%clk
0:08:19.2]} 17. Rae1 {[%clk 0:08:09.9]} 17... Rxe2 {[%clk 0:08:02.7]} 18. Rxe2
{[%clk 0:08:09.5]} 18... b5 {[%clk 0:07:59]} 19. g3 {[%clk 0:07:46.6]} 19... Kf8
{[%clk 0:07:51.7]} 20. Rd2 {[%clk 0:07:40.5]} 20... Be5 {[%clk 0:07:51.3]} 21.
Nd1 {[%clk 0:07:33.5]} 21... Ke7 {[%clk 0:07:35.1]} 22. c3 {[%clk 0:07:31]}
22... Nd7 {[%clk 0:07:23.8]} 23. Kg2 {[%clk 0:07:22.4]} 23... Nb6 {[%clk
0:07:20.1]} 24. Re2 {[%clk 0:07:19.8]} 24... Kd6 {[%clk 0:07:19.1]} 25. Be4
{[%clk 0:06:50.3]} 25... g6 {[%clk 0:07:17.3]} 26. f4 {[%clk 0:06:50.4]} 26...
Bg7 {[%clk 0:07:16.4]} 27. f5 {[%clk 0:06:44.1]} 27... Re8 {[%clk 0:07:05.9]}
28. Rd2+ {[%clk 0:06:26.3]} 28... Kc7 {[%clk 0:07:03.1]} 29. Bd3 {[%clk
0:06:21.2]} 29... Rd8 {[%clk 0:07:01.6]} 30. Nf2 {[%clk 0:05:56.9]} 30... Re8
{[%clk 0:05:41.9]} 31. fxg6 {[%clk 0:05:31.3]} 31... hxg6 {[%clk 0:05:41.2]} 32.
Re2 {[%clk 0:05:20.8]} 32... Rxe2 {[%clk 0:05:40.5]} 33. Bxe2 {[%clk 0:05:21.7]}
33... Na4 {[%clk 0:05:37.1]} 34. Nd3 {[%clk 0:05:10.1]} 34... c5 {[%clk
0:05:30.1]} 35. Bd1 {[%clk 0:05:07.8]} 35... Kd6 {[%clk 0:04:56.5]} 36. Kf2
{[%clk 0:04:30.3]} 36... c4 {[%clk 0:03:41.7]} 37. Bxa4 {[%clk 0:04:27.8]} 37...
bxa4 {[%clk 0:03:41.8]} 38. Nf4 {[%clk 0:04:10.5]} 38... Ke5 {[%clk 0:03:37.9]}
39. Kf3 {[%clk 0:04:07.2]} 39... g5 {[%clk 0:02:12.9]} 40. Nh5 {[%clk
0:03:55.7]} 40... Bh6 {[%clk 0:02:13.6]} 41. g4 {[%clk 0:03:56.7]} 41... Bf8
{[%clk 0:02:14.3]} 42. Ng3 {[%clk 0:03:53]} 42... f6 {[%clk 0:02:03.9]} 43. Nf5
{[%clk 0:03:51]} 43... Bc5 {[%clk 0:02:01.9]} 44. h4 {[%clk 0:03:39.8]} 44...
gxh4 {[%clk 0:02:00.2]} 45. Nxh4 {[%clk 0:03:41.7]} 45... b5 {[%clk 0:01:50.1]}
46. Ng6+ {[%clk 0:03:41.4]} 46... Ke6 {[%clk 0:01:50]} 47. Ke4 {[%clk
0:03:33.4]} 47... Bf2 {[%clk 0:01:37.1]} 48. Nf4+ {[%clk 0:03:28.8]} 48... Kd6
{[%clk 0:01:37.8]} 49. Nd5 {[%clk 0:03:27.8]} 49... Bh4 {[%clk 0:01:37.8]} 50.
Ne3 {[%clk 0:03:24.5]} 50... Bg5 {[%clk 0:01:38]} 51. Nf5+ {[%clk 0:03:16.6]}
51... Kc5 {[%clk 0:01:38.8]} 52. Ne3 {[%clk 0:03:05]} 52... Kc6 {[%clk
0:01:26.3]} 53. Kd4 {[%clk 0:02:37.9]} 53... Bh6 {[%clk 0:01:18.5]} 54. Nd5
{[%clk 0:02:05.2]} 54... Bc1 {[%clk 0:01:15.9]} 55. Nxf6 {[%clk 0:02:05.3]}
55... Bxb2 {[%clk 0:01:08.1]} 56. g5 {[%clk 0:02:06.1]} 56... b4 {[%clk
0:01:08.3]} 57. axb4 {[%clk 0:02:03.9]} 57... a3 {[%clk 0:01:07.9]} 58. g6
{[%clk 0:01:57.4]} 58... a2 {[%clk 0:01:07.2]} 59. g7 {[%clk 0:01:41.2]} 59...
a1=Q {[%clk 0:00:57.4]} 60. g8=Q {[%clk 0:01:36.5]} 60... Bxc3+ {[%clk
0:00:51.6]} 61. Kxc4 {[%clk 0:01:37.2]} 61... Qa2+ {[%clk 0:00:52.1]} 62. Kxc3
{[%clk 0:01:36.8]} 62... Qa1+ {[%clk 0:00:53.2]} 63. Kc4 {[%clk 0:01:29]} 63...
Qxf6 {[%clk 0:00:50.5]} 64. Qd5+ {[%clk 0:01:28.6]} 64... Kb6 {[%clk 0:00:49.4]}
65. Qc5+ {[%clk 0:01:27.3]} 65... Kb7 {[%clk 0:00:47.5]} 66. Qb5+ {[%clk
0:01:21]} 66... Kc7 {[%clk 0:00:44.5]} 67. Kb3 {[%clk 0:01:09.8]} 67... Qa1
{[%clk 0:00:39.9]} 68. Qc5+ {[%clk 0:01:06.8]} 68... Kb7 {[%clk 0:00:40.1]} 69.
Qd5+ {[%clk 0:01:05.1]} 69... Kb6 {[%clk 0:00:37.8]} 70. Qe6+ {[%clk 0:01:04.7]}
70... Kb7 {[%clk 0:00:33.9]} 71. Qe7+ {[%clk 0:01:04.4]} 71... Kb6 {[%clk
0:00:30.2]} 72. Qc5+ {[%clk 0:01:04.4]} 72... Kb7 {[%clk 0:00:30.5]} 73. Kc4
{[%clk 0:01:01.4]} 73... Qf1+ {[%clk 0:00:29.3]} 74. Kd4 {[%clk 0:01:01.1]}
74... Qf2+ {[%clk 0:00:29.7]} 75. Kd5 {[%clk 0:00:57.8]} 75... Qxc5+ {[%clk
0:00:27]} 76. Kxc5 {[%clk 0:00:57.6]} 76... Kc7 {[%clk 0:00:28.1]} 77. Kb5
{[%clk 0:00:50.8]} 77... Kb7 {[%clk 0:00:28.9]} 78. Ka5 {[%clk 0:00:44]} 78...
Ka7 {[%clk 0:00:29.4]} 79. b5 {[%clk 0:00:41.9]} 79... Kb7 {[%clk 0:00:29.8]}
80. b6 {[%clk 0:00:41.1]} 80... Kb8 {[%clk 0:00:28.2]} 81. Kb5 {[%clk
0:00:39.1]} 81... Kb7 {[%clk 0:00:28.4]} 82. Kc5 {[%clk 0:00:39.5]} 82... Kb8
{[%clk 0:00:29]} 83. Kc4 {[%clk 0:00:39]} 83... Kb7 {[%clk 0:00:29.7]} 84. Kb5
{[%clk 0:00:40.9]} 84... Kb8 {[%clk 0:00:30.2]} 85. Kc6 {[%clk 0:00:41.4]} 85...
Kc8 {[%clk 0:00:30.6]} 86. b7+ {[%clk 0:00:43.3]} 86... Kb8 {[%clk 0:00:31.3]}
87. Kb6 {[%clk 0:00:45.2]} 1/2-1/2

[Event "GrandPrix_29.05"]
[Site "Chess.com"]
[Date "2020.05.29"]
[Round "4"]
[White "Malysch"]
[Black "AbasovN"]
[Result "1-0"]
[WhiteElo "2317"]
[BlackElo "2259"]
[TimeControl "600+2"]
[EndTime "11:02:36 PDT"]
[Termination "Malysch won by resignation"]

1. d4 {[%clk 0:10:01.9]} 1... Nf6 {[%clk 0:10:00.8]} 2. c4 {[%clk 0:10:02.8]}
2... e6 {[%clk 0:10:02]} 3. g3 {[%clk 0:10:03.5]} 3... d5 {[%clk 0:10:02.6]} 4.
Bg2 {[%clk 0:10:01.5]} 4... dxc4 {[%clk 0:10:00]} 5. Nf3 {[%clk 0:10:01.4]} 5...
a6 {[%clk 0:09:54.3]} 6. Ne5 {[%clk 0:10:01.4]} 6... Bb4+ {[%clk 0:09:53.9]} 7.
Nc3 {[%clk 0:10:00.2]} 7... Nd5 {[%clk 0:09:39.3]} 8. Bd2 {[%clk 0:09:59.8]}
8... b5 {[%clk 0:09:33.9]} 9. O-O {[%clk 0:09:30.3]} 9... Be7 {[%clk 0:08:01.4]}
10. e4 {[%clk 0:06:53.1]} 10... Nxc3 {[%clk 0:08:01]} 11. bxc3 {[%clk 0:06:55]}
11... O-O {[%clk 0:07:41.3]} 12. a4 {[%clk 0:06:52.7]} 12... Bb7 {[%clk
0:07:39.9]} 13. Qb1 {[%clk 0:06:47.6]} 13... Nd7 {[%clk 0:07:36.5]} 14. Nxc4
{[%clk 0:06:43.1]} 14... Rb8 {[%clk 0:05:54.7]} 15. axb5 {[%clk 0:06:25]} 15...
axb5 {[%clk 0:05:56.6]} 16. Ra7 {[%clk 0:05:40.3]} 16... Ba8 {[%clk 0:04:59.4]}
17. Na5 {[%clk 0:05:23.9]} 17... e5 {[%clk 0:04:59.2]} 18. Be3 {[%clk
0:05:06.9]} 18... exd4 {[%clk 0:04:44.3]} 19. cxd4 {[%clk 0:05:06.3]} 19... c5
{[%clk 0:04:17.5]} 20. e5 {[%clk 0:03:41.5]} 20... cxd4 {[%clk 0:01:27.8]} 21.
Bxa8 {[%clk 0:02:29.2]} 21... dxe3 {[%clk 0:01:24.5]} 22. Nc6 {[%clk 0:02:22.1]}
22... Qe8 {[%clk 0:01:18.4]} 23. Nxb8 {[%clk 0:01:47.7]} 23... exf2+ {[%clk
0:01:19.5]} 24. Kg2 {[%clk 0:01:15]} 24... Qxb8 {[%clk 0:01:19.3]} 25. Rxd7
{[%clk 0:01:12.6]} 25... Qxa8+ {[%clk 0:01:19.6]} 26. Kh3 {[%clk 0:01:03.1]}
26... Bc5 {[%clk 0:01:00]} 27. Qf5 {[%clk 0:00:58.7]} 27... Qe8 {[%clk 0:00:49]}
28. Rfd1 {[%clk 0:00:47.9]} 28... b4 {[%clk 0:00:45.7]} 29. Kg2 {[%clk
0:00:45.8]} 29... Qa8+ {[%clk 0:00:45.4]} 30. Kh3 {[%clk 0:00:43.1]} 30... Qe8
{[%clk 0:00:39.5]} 31. Kg2 {[%clk 0:00:42.9]} 31... h6 {[%clk 0:00:38.3]} 32.
Rc7 {[%clk 0:00:35.6]} 32... Bb6 {[%clk 0:00:36.4]} 33. Rb7 {[%clk 0:00:31.8]}
33... Qc6+ {[%clk 0:00:22.2]} 34. Qf3 {[%clk 0:00:32.8]} 34... Qc5 {[%clk
0:00:07.6]} 35. Rdd7 {[%clk 0:00:20.7]} 35... f1=Q+ {[%clk 0:00:08]} 36. Qxf1
{[%clk 0:00:19.5]} 36... Qc2+ {[%clk 0:00:06.9]} 37. Kh3 {[%clk 0:00:19]} 37...
Qg6 {[%clk 0:00:08]} 38. Qf4 {[%clk 0:00:16.6]} 38... Bc5 {[%clk 0:00:07.9]} 39.
Qg4 {[%clk 0:00:13.6]} 39... Qxg4+ {[%clk 0:00:03.6]} 40. Kxg4 {[%clk
0:00:14.1]} 40... g6 {[%clk 0:00:04.4]} 41. Kf3 {[%clk 0:00:14.4]} 41... h5
{[%clk 0:00:04.1]} 42. Ke4 {[%clk 0:00:15.3]} 42... Bg1 {[%clk 0:00:04.7]} 43.
e6 {[%clk 0:00:15.7]} 43... Re8 {[%clk 0:00:04.8]} 44. Rxf7 {[%clk 0:00:16]}
44... Rxe6+ {[%clk 0:00:05.8]} 45. Kd5 {[%clk 0:00:17.1]} 45... Rb6 {[%clk
0:00:06.4]} 46. Rg7+ {[%clk 0:00:15.3]} 46... Kf8 {[%clk 0:00:07.6]} 47. Rxb6
{[%clk 0:00:14.3]} 47... Bxb6 {[%clk 0:00:09.5]} 48. Rxg6 {[%clk 0:00:15.4]}
48... Bd8 {[%clk 0:00:10.8]} 49. Kc4 {[%clk 0:00:09.2]} 49... Be7 {[%clk
0:00:11.4]} 50. Rh6 {[%clk 0:00:07.1]} 50... h4 {[%clk 0:00:12.7]} 51. gxh4
{[%clk 0:00:07]} 51... Kg7 {[%clk 0:00:14]} 52. Rh5 {[%clk 0:00:07.3]} 52... Kg6
{[%clk 0:00:15.3]} 53. Re5 {[%clk 0:00:07.4]} 53... Bf8 {[%clk 0:00:16.4]} 54.
h5+ {[%clk 0:00:06.4]} 54... Kh6 {[%clk 0:00:17.7]} 55. Rb5 {[%clk 0:00:07.4]}
55... Be7 {[%clk 0:00:16.5]} 56. Kd3 {[%clk 0:00:07.9]} 56... Bg5 {[%clk
0:00:13.5]} 57. Rxb4 {[%clk 0:00:06.9]} 57... Kxh5 {[%clk 0:00:15]} 58. Ke2
{[%clk 0:00:08.2]} 58... Be7 {[%clk 0:00:14.2]} 59. Ra4 {[%clk 0:00:06.8]} 59...
Bd6 {[%clk 0:00:13.8]} 60. h3 {[%clk 0:00:06.2]} 60... Bb8 {[%clk 0:00:14.7]}
61. Kf3 {[%clk 0:00:07.1]} 61... Bc7 {[%clk 0:00:15.8]} 62. Rc4 {[%clk
0:00:06.9]} 62... Bd6 {[%clk 0:00:16.7]} 63. Kg2 {[%clk 0:00:07.8]} 63... Bb8
{[%clk 0:00:17]} 64. h4 {[%clk 0:00:06.9]} 64... Bd6 {[%clk 0:00:16.8]} 65. Kh3
{[%clk 0:00:08.8]} 65... Be7 {[%clk 0:00:17.1]} 66. Ra4 {[%clk 0:00:08.4]} 66...
Bd8 {[%clk 0:00:12.5]} 67. Rd4 {[%clk 0:00:08.7]} 67... Bf6 {[%clk 0:00:10.6]}
68. Rd5+ {[%clk 0:00:10.6]} 68... Kg6 {[%clk 0:00:11.9]} 69. Kg4 {[%clk
0:00:11.6]} 69... Bb2 {[%clk 0:00:13.2]} 70. Rd6+ {[%clk 0:00:12.2]} 70... Kh7
{[%clk 0:00:13.8]} 71. Rb6 {[%clk 0:00:12.4]} 71... Bc1 {[%clk 0:00:14.4]} 72.
Ra6 {[%clk 0:00:12.2]} 72... Bd2 {[%clk 0:00:14.7]} 73. Kh5 {[%clk 0:00:12.6]}
73... Be3 {[%clk 0:00:14.8]} 74. Re6 {[%clk 0:00:10.9]} 74... Bf2 {[%clk
0:00:16.1]} 75. Re7+ {[%clk 0:00:11.4]} 75... Kg8 {[%clk 0:00:17.2]} 76. Kg6
{[%clk 0:00:12]} 76... Kf8 {[%clk 0:00:17.5]} 77. Rf7+ {[%clk 0:00:11.9]} 1-0